[Event "Titled Tuesday Blitz December 27 Early 2022"]
[White "Csonka, Balazs"]
[Black "Babazada, Khazar"]
[WhiteFideId "742910"]
[BlackFideId "13413554"]
[WhiteElo "2496"]
[BlackElo "2474"]
[Result "0-1"]
[Round "06"]
[TimeControl "180+2"]
[Date "2022.12.27"]
[WhiteClock "0:00:04"]
[BlackClock "0:01:14"]

1. e4 {[%clk 0:03:00]}  d6 {[%clk 0:03:00]} 2. d4 {[%clk 0:02:57]}  Nf6 {[%clk 0:03:01]} 3. Nc3 {[%clk 0:02:57]}  Nbd7 {[%clk 0:03:00]} 4. g4 {[%clk 0:02:49]}  h6 {[%clk 0:02:57]} 5. h3 {[%clk 0:02:26]}  e5 {[%clk 0:02:57]} 6. Nge2 {[%clk 0:02:25]}  Be7 {[%clk 0:02:56]} 7. Bg2 {[%clk 0:02:23]}  c6 {[%clk 0:02:54]} 8. a4 {[%clk 0:02:21]}  Qc7 {[%clk 0:02:54]} 9. O-O {[%clk 0:02:21]}  Nf8 {[%clk 0:02:54]} 10. f4 {[%clk 0:02:20]}  Ne6 {[%clk 0:02:50]} 11. f5 {[%clk 0:02:03]}  Ng5 {[%clk 0:02:48]} 12. Be3 {[%clk 0:01:52]}  exd4 {[%clk 0:02:23]} 13. Bxd4 {[%clk 0:00:41]}  Bd7 {[%clk 0:02:18]} 14. a5 {[%clk 0:00:37]}  c5 {[%clk 0:02:09]} 15. Bf2 {[%clk 0:00:35]}  Bc6 {[%clk 0:02:09]} 16. Ng3 {[%clk 0:00:32]}  O-O-O {[%clk 0:02:02]} 17. Re1 {[%clk 0:00:24]}  Rhe8 {[%clk 0:02:02]} 18. Qd2 {[%clk 0:00:15]}  Nd7 {[%clk 0:02:02]} 19. Nd5 {[%clk 0:00:12]}  Bxd5 {[%clk 0:02:02]} 20. exd5 {[%clk 0:00:11]}  Bf6 {[%clk 0:02:03]} 21. Rxe8 {[%clk 0:00:07]}  Rxe8 {[%clk 0:02:03]} 22. h4 {[%clk 0:00:07]}  Nh7 {[%clk 0:01:59]} 23. Nh5 {[%clk 0:00:07]}  Be5 {[%clk 0:02:00]} 24. c3 {[%clk 0:00:04]}  g6 {[%clk 0:02:00]} 25. fxg6 {[%clk 0:00:05]}  fxg6 {[%clk 0:02:01]} 26. Nf4 {[%clk 0:00:06]}  Ndf6 {[%clk 0:01:53]} 27. g5 {[%clk 0:00:02]}  hxg5 {[%clk 0:01:53]} 28. hxg5 {[%clk 0:00:03]}  Nxg5 {[%clk 0:01:53]} 29. Nxg6 {[%clk 0:00:04]}  Nfe4 {[%clk 0:01:49]} 30. Qd3 {[%clk 0:00:03]}  Qf7 {[%clk 0:01:13]} 31. Bh4 {[%clk 0:00:03]}  Qxg6 {[%clk 0:01:12]} 32. Bxg5 {[%clk 0:00:03]}  Qxg5 {[%clk 0:01:12]} 33. Qxe4 {[%clk 0:00:03]}  Bh2+ {[%clk 0:01:13]} 34. Kxh2 {[%clk 0:00:03]}  Rxe4 {[%clk 0:01:14]} 35. Bxe4 {[%clk 0:00:04]}  Qh4+ {[%clk 0:01:14]} 0-1


[Site "https://www.chess.com"]

[Event "Titled Tuesday Blitz December 27 Early 2022"]
[White "Da Silva Junior, Sediney Mari"]
[Black "Guevara Sanchez, Erick Marvin"]
[WhiteFideId "2132079"]
[BlackFideId "6700136"]
[WhiteElo "2010"]
[BlackElo "2073"]
[Result "1-0"]
[Round "06"]
[TimeControl "180+2"]
[Date "2022.12.27"]
[WhiteClock "0:00:02"]
[BlackClock "0:00:02"]

1. e4 {[%clk 0:03:00]}  c5 {[%clk 0:02:59]} 2. c3 {[%clk 0:03:00]}  e6 {[%clk 0:02:57]} 3. d4 {[%clk 0:02:59]}  d5 {[%clk 0:02:58]} 4. exd5 {[%clk 0:02:59]}  exd5 {[%clk 0:02:58]} 5. Nf3 {[%clk 0:03:00]}  Nf6 {[%clk 0:02:57]} 6. Bd3 {[%clk 0:03:00]}  cxd4 {[%clk 0:02:56]} 7. cxd4 {[%clk 0:03:00]}  Bd6 {[%clk 0:02:56]} 8. O-O {[%clk 0:03:01]}  O-O {[%clk 0:02:55]} 9. Bg5 {[%clk 0:03:01]}  h6 {[%clk 0:02:52]} 10. Bh4 {[%clk 0:03:01]}  Bg4 {[%clk 0:02:47]} 11. h3 {[%clk 0:02:29]}  Bh5 {[%clk 0:02:46]} 12. Nc3 {[%clk 0:02:15]}  Be7 {[%clk 0:02:41]} 13. Re1 {[%clk 0:01:51]}  Nbd7 {[%clk 0:02:32]} 14. Bc2 {[%clk 0:01:39]}  Rc8 {[%clk 0:02:21]} 15. Rc1 {[%clk 0:01:37]}  Re8 {[%clk 0:02:14]} 16. Qd3 {[%clk 0:01:37]}  Bg6 {[%clk 0:02:10]} 17. Qd2 {[%clk 0:01:37]}  Bxc2 {[%clk 0:01:57]} 18. Rxc2 {[%clk 0:01:35]}  Qb6 {[%clk 0:01:47]} 19. Ne5 {[%clk 0:01:31]}  Qa5 {[%clk 0:01:14]} 20. Nxd7 {[%clk 0:01:21]}  Ne4 {[%clk 0:01:09]} 21. Nxe4 {[%clk 0:01:03]}  Qxd2 {[%clk 0:01:08]} 22. Nxd2 {[%clk 0:01:04]}  Rxc2 {[%clk 0:01:06]} 23. Rxe7 {[%clk 0:00:26]}  Rxe7 {[%clk 0:01:05]} 24. Bxe7 {[%clk 0:00:26]}  Rxd2 {[%clk 0:01:04]} 25. Ba3 {[%clk 0:00:23]}  Rxd4 {[%clk 0:01:02]} 26. Kf1 {[%clk 0:00:22]}  Rd2 {[%clk 0:00:55]} 27. Ke1 {[%clk 0:00:21]}  Rc2 {[%clk 0:00:54]} 28. Nc5 {[%clk 0:00:19]}  b6 {[%clk 0:00:51]} 29. Nd3 {[%clk 0:00:19]}  Kh7 {[%clk 0:00:48]} 30. Nb4 {[%clk 0:00:19]}  Rc5 {[%clk 0:00:36]} 31. Kd2 {[%clk 0:00:19]}  Rb5 {[%clk 0:00:32]} 32. Kd3 {[%clk 0:00:17]}  d4 {[%clk 0:00:21]} 33. Kxd4 {[%clk 0:00:16]}  Rg5 {[%clk 0:00:21]} 34. g3 {[%clk 0:00:16]}  Rh5 {[%clk 0:00:20]} 35. h4 {[%clk 0:00:16]}  Rf5 {[%clk 0:00:21]} 36. Ke3 {[%clk 0:00:12]}  Re5+ {[%clk 0:00:20]} 37. Kf3 {[%clk 0:00:11]}  Re8 {[%clk 0:00:19]} 38. Nd3 {[%clk 0:00:11]}  Rc8 {[%clk 0:00:20]} 39. Ke3 {[%clk 0:00:09]}  Rc2 {[%clk 0:00:18]} 40. f3 {[%clk 0:00:09]}  f6 {[%clk 0:00:18]} 41. Bd6 {[%clk 0:00:09]}  a6 {[%clk 0:00:17]} 42. h5 {[%clk 0:00:07]}  g6 {[%clk 0:00:17]} 43. hxg6+ {[%clk 0:00:07]}  Kxg6 {[%clk 0:00:17]} 44. g4 {[%clk 0:00:08]}  f5 {[%clk 0:00:16]} 45. gxf5+ {[%clk 0:00:07]}  Kxf5 {[%clk 0:00:16]} 46. Bf8 {[%clk 0:00:04]}  h5 {[%clk 0:00:16]} 47. Bg7 {[%clk 0:00:05]}  h4 {[%clk 0:00:15]} 48. f4 {[%clk 0:00:05]}  h3 {[%clk 0:00:14]} 49. Ne1 {[%clk 0:00:04]}  h2 {[%clk 0:00:13]} 50. Nxc2 {[%clk 0:00:04]}  h1=Q {[%clk 0:00:13]} 51. Be5 {[%clk 0:00:05]}  Qe4+ {[%clk 0:00:13]} 52. Kd2 {[%clk 0:00:05]}  b5 {[%clk 0:00:11]} 53. Nd4+ {[%clk 0:00:04]}  Kg4 {[%clk 0:00:08]} 54. Ne2 {[%clk 0:00:04]}  Kf3 {[%clk 0:00:06]} 55. Nc3 {[%clk 0:00:04]}  Qh7 {[%clk 0:00:05]} 56. a3 {[%clk 0:00:04]}  Qd7+ {[%clk 0:00:05]} 57. Kc2 {[%clk 0:00:04]}  Kg4 {[%clk 0:00:04]} 58. Ne4 {[%clk 0:00:03]}  Kf5 {[%clk 0:00:03]} 59. Nc5 {[%clk 0:00:02]}  Qc6 {[%clk 0:00:03]} 60. b4 {[%clk 0:00:02]}  Qg2+ {[%clk 0:00:02]} 61. Kc3 {[%clk 0:00:03]}  Qf3+ {[%clk 0:00:02]} 62. Kd4 {[%clk 0:00:02]}  Qf2+ {[%clk 0:00:03]} 63. Kd5 {[%clk 0:00:02]}  Qd2+ {[%clk 0:00:02]} 64. Kc6 {[%clk 0:00:02]} 1-0


[Site "https://www.chess.com"]

[Event "Titled Tuesday Blitz December 27 Early 2022"]
[White "Derjabin, Ilja"]
[Black "Galchenko, Matvey"]
[WhiteFideId "14104768"]
[BlackFideId "24175480"]
[WhiteElo "2333"]
[BlackElo "2438"]
[Result "1/2-1/2"]
[Round "06"]
[TimeControl "180+2"]
[Date "2022.12.27"]
[WhiteClock "0:00:07"]
[BlackClock "0:00:03"]

1. d4 {[%clk 0:03:00]}  Nf6 {[%clk 0:03:00]} 2. c4 {[%clk 0:03:01]}  c5 {[%clk 0:03:00]} 3. d5 {[%clk 0:03:01]}  e6 {[%clk 0:03:01]} 4. Nc3 {[%clk 0:03:01]}  exd5 {[%clk 0:03:01]} 5. cxd5 {[%clk 0:03:02]}  d6 {[%clk 0:03:02]} 6. e4 {[%clk 0:03:02]}  g6 {[%clk 0:03:02]} 7. Nge2 {[%clk 0:03:02]}  h5 {[%clk 0:02:50]} 8. Bg5 {[%clk 0:02:55]}  Bg7 {[%clk 0:02:48]} 9. Qd2 {[%clk 0:02:52]}  a6 {[%clk 0:02:41]} 10. a4 {[%clk 0:02:51]}  Qe7 {[%clk 0:02:38]} 11. f3 {[%clk 0:02:34]}  Nbd7 {[%clk 0:02:33]} 12. Nf4 {[%clk 0:02:01]}  h4 {[%clk 0:02:11]} 13. Be2 {[%clk 0:01:55]}  Rb8 {[%clk 0:01:51]} 14. O-O {[%clk 0:01:50]}  Ne5 {[%clk 0:01:18]} 15. Rae1 {[%clk 0:01:35]}  c4 {[%clk 0:01:14]} 16. h3 {[%clk 0:01:30]}  b5 {[%clk 0:01:12]} 17. axb5 {[%clk 0:01:30]}  axb5 {[%clk 0:01:13]} 18. Nd1 {[%clk 0:01:24]}  Qa7+ {[%clk 0:01:12]} 19. Kh1 {[%clk 0:01:21]}  Nh7 {[%clk 0:01:12]} 20. Bxh4 {[%clk 0:01:18]}  Qc7 {[%clk 0:00:56]} 21. Bg3 {[%clk 0:01:08]}  Nf6 {[%clk 0:00:49]} 22. Ne3 {[%clk 0:00:51]}  Nfd7 {[%clk 0:00:39]} 23. Ne6 {[%clk 0:00:43]}  fxe6 {[%clk 0:00:38]} 24. dxe6 {[%clk 0:00:43]}  Nc5 {[%clk 0:00:37]} 25. Nd5 {[%clk 0:00:41]}  Qb7 {[%clk 0:00:20]} 26. Bxe5 {[%clk 0:00:25]}  Bxe5 {[%clk 0:00:18]} 27. Qg5 {[%clk 0:00:25]}  Bxe6 {[%clk 0:00:16]} 28. f4 {[%clk 0:00:23]}  Bd4 {[%clk 0:00:07]} 29. Bf3 {[%clk 0:00:18]}  Qf7 {[%clk 0:00:03]} 30. f5 {[%clk 0:00:15]}  Bxd5 {[%clk 0:00:03]} 31. fxg6 {[%clk 0:00:12]}  Qg7 {[%clk 0:00:02]} 32. exd5+ {[%clk 0:00:13]}  Be5 {[%clk 0:00:02]} 33. Bg4 {[%clk 0:00:09]}  Rg8 {[%clk 0:00:03]} 34. Be6 {[%clk 0:00:07]}  Qxg6 {[%clk 0:00:02]} 35. Qxg6+ {[%clk 0:00:06]}  Rxg6 {[%clk 0:00:03]} 36. Bf7+ {[%clk 0:00:06]}  Kd8 {[%clk 0:00:02]} 37. Bxg6 {[%clk 0:00:07]}  Rb6 {[%clk 0:00:02]} 38. Rf7 {[%clk 0:00:07]}  b4 {[%clk 0:00:02]} 39. Ref1 {[%clk 0:00:07]}  Kc8 {[%clk 0:00:02]} 40. Bf5+ {[%clk 0:00:06]}  Kb8 {[%clk 0:00:02]} 41. Be6 {[%clk 0:00:06]}  c3 {[%clk 0:00:02]} 42. Re7 {[%clk 0:00:05]}  Ka8 {[%clk 0:00:01]} 43. Rf8+ {[%clk 0:00:05]}  Rb8 {[%clk 0:00:02]} 44. Rxb8+ {[%clk 0:00:05]}  Kxb8 {[%clk 0:00:03]} 45. bxc3 {[%clk 0:00:06]}  b3 {[%clk 0:00:03]} 46. Bf5 {[%clk 0:00:05]}  b2 {[%clk 0:00:03]} 47. Rxe5 {[%clk 0:00:04]}  dxe5 {[%clk 0:00:04]} 48. Bb1 {[%clk 0:00:02]}  Na4 {[%clk 0:00:03]} 49. h4 {[%clk 0:00:03]}  Nxc3 {[%clk 0:00:03]} 50. Bc2 {[%clk 0:00:03]}  Nxd5 {[%clk 0:00:03]} 51. h5 {[%clk 0:00:03]}  Nf6 {[%clk 0:00:03]} 52. Kg1 {[%clk 0:00:02]}  Nxh5 {[%clk 0:00:03]} 53. Kf2 {[%clk 0:00:02]}  Kc7 {[%clk 0:00:04]} 54. Ke3 {[%clk 0:00:03]}  Kd6 {[%clk 0:00:04]} 55. g4 {[%clk 0:00:04]}  Nf6 {[%clk 0:00:05]} 56. g5 {[%clk 0:00:04]}  Nd5+ {[%clk 0:00:05]} 57. Ke4 {[%clk 0:00:04]}  b1=Q {[%clk 0:00:03]} 58. Bxb1 {[%clk 0:00:04]}  Nc3+ {[%clk 0:00:04]} 59. Kf5 {[%clk 0:00:05]}  Nxb1 {[%clk 0:00:03]} 60. g6 {[%clk 0:00:05]}  Ke7 {[%clk 0:00:02]} 61. Kxe5 {[%clk 0:00:06]}  Nc3 {[%clk 0:00:03]} 62. g7 {[%clk 0:00:07]}  Kf7 {[%clk 0:00:03]} 63. Kd4 {[%clk 0:00:07]}  Kxg7 {[%clk 0:00:03]} 1/2-1/2


[Site "https://www.chess.com"]

[Event "Titled Tuesday Blitz December 27 Early 2022"]
[White "Dilmukhametov, Artur"]
[Black "White, John S."]
[WhiteFideId "24179922"]
[BlackFideId "2502348"]
[WhiteElo "2276"]
[BlackElo "2235"]
[Result "1/2-1/2"]
[Round "06"]
[TimeControl "180+2"]
[Date "2022.12.27"]
[WhiteClock "0:00:18"]
[BlackClock "0:00:10"]

1. d4 {[%clk 0:03:00]}  Nf6 {[%clk 0:02:58]} 2. Nc3 {[%clk 0:02:59]}  d5 {[%clk 0:02:55]} 3. Bf4 {[%clk 0:02:59]}  e6 {[%clk 0:02:53]} 4. e3 {[%clk 0:02:59]}  Bd6 {[%clk 0:02:52]} 5. Bxd6 {[%clk 0:02:56]}  Qxd6 {[%clk 0:02:51]} 6. Nf3 {[%clk 0:02:57]}  c6 {[%clk 0:02:50]} 7. Bd3 {[%clk 0:02:57]}  Nbd7 {[%clk 0:02:49]} 8. Qe2 {[%clk 0:02:56]}  O-O {[%clk 0:02:47]} 9. O-O {[%clk 0:02:55]}  e5 {[%clk 0:02:44]} 10. e4 {[%clk 0:02:32]}  exd4 {[%clk 0:02:33]} 11. e5 {[%clk 0:02:24]}  Nxe5 {[%clk 0:02:19]} 12. Qxe5 {[%clk 0:02:22]}  Qxe5 {[%clk 0:02:16]} 13. Nxe5 {[%clk 0:02:20]}  dxc3 {[%clk 0:02:15]} 14. bxc3 {[%clk 0:02:20]}  Re8 {[%clk 0:02:09]} 15. Rfe1 {[%clk 0:02:20]}  Bg4 {[%clk 0:01:50]} 16. g3 {[%clk 0:02:07]}  Bh5 {[%clk 0:01:45]} 17. c4 {[%clk 0:02:00]}  Bg6 {[%clk 0:01:30]} 18. cxd5 {[%clk 0:01:55]}  Nxd5 {[%clk 0:01:26]} 19. Nxg6 {[%clk 0:01:50]}  hxg6 {[%clk 0:01:25]} 20. c4 {[%clk 0:01:39]}  Nb4 {[%clk 0:01:14]} 21. Bf1 {[%clk 0:01:35]}  Nc2 {[%clk 0:01:10]} 22. Rxe8+ {[%clk 0:01:33]}  Rxe8 {[%clk 0:01:08]} 23. Rc1 {[%clk 0:01:33]}  Nd4 {[%clk 0:01:05]} 24. Kg2 {[%clk 0:01:29]}  c5 {[%clk 0:01:02]} 25. Rb1 {[%clk 0:01:28]}  b6 {[%clk 0:01:01]} 26. a4 {[%clk 0:01:25]}  Nc6 {[%clk 0:00:52]} 27. Bd3 {[%clk 0:01:13]}  Nb4 {[%clk 0:00:48]} 28. Bf1 {[%clk 0:01:04]}  Re4 {[%clk 0:00:44]} 29. Rd1 {[%clk 0:00:55]}  Rd4 {[%clk 0:00:41]} 30. Re1 {[%clk 0:00:53]}  Kf8 {[%clk 0:00:41]} 31. f4 {[%clk 0:00:50]}  Rd2+ {[%clk 0:00:38]} 32. Kh3 {[%clk 0:00:50]}  Ra2 {[%clk 0:00:37]} 33. Rd1 {[%clk 0:00:48]}  Rxa4 {[%clk 0:00:34]} 34. Rd7 {[%clk 0:00:47]}  Ke8 {[%clk 0:00:28]} 35. Rb7 {[%clk 0:00:46]}  Nc6 {[%clk 0:00:21]} 36. Kg4 {[%clk 0:00:43]}  Nd4 {[%clk 0:00:18]} 37. Bd3 {[%clk 0:00:40]}  Rb4 {[%clk 0:00:18]} 38. Rxa7 {[%clk 0:00:36]}  Rb3 {[%clk 0:00:18]} 39. Bf1 {[%clk 0:00:34]}  Rb1 {[%clk 0:00:17]} 40. Bd3 {[%clk 0:00:32]}  Nc6 {[%clk 0:00:17]} 41. Ra8+ {[%clk 0:00:28]}  Kd7 {[%clk 0:00:15]} 42. Be4 {[%clk 0:00:21]}  Re1 {[%clk 0:00:10]} 43. Bxc6+ {[%clk 0:00:18]}  Kxc6 {[%clk 0:00:10]} 44. Rc8+ {[%clk 0:00:18]}  Kd7 {[%clk 0:00:10]} 45. Rb8 {[%clk 0:00:18]}  Kc7 {[%clk 0:00:10]} 1/2-1/2


[Site "https://www.chess.com"]

[Event "Titled Tuesday Blitz December 27 Early 2022"]
[White "Ezat, Mohamed"]
[Black "Mohammed, Zozek Salah Mohammed"]
[WhiteFideId "10600906"]
[BlackFideId "4803361"]
[WhiteElo "2402"]
[BlackElo "2210"]
[Result "0-1"]
[Round "06"]
[TimeControl "180+2"]
[Date "2022.12.27"]
[WhiteClock "0:00:02"]
[BlackClock "0:00:16"]

1. d4 {[%clk 0:00:28]}  Nf6 {[%clk 0:02:49]} 2. c4 {[%clk 0:00:27]}  e5 {[%clk 0:02:49]} 3. dxe5 {[%clk 0:00:26]}  Ng4 {[%clk 0:02:49]} 4. Bf4 {[%clk 0:00:22]}  Nc6 {[%clk 0:02:40]} 5. Nf3 {[%clk 0:00:21]}  Bb4+ {[%clk 0:02:37]} 6. Nbd2 {[%clk 0:00:20]}  f6 {[%clk 0:02:34]} 7. exf6 {[%clk 0:00:19]}  Qxf6 {[%clk 0:02:34]} 8. e3 {[%clk 0:00:19]}  Qxb2 {[%clk 0:02:32]} 9. Be2 {[%clk 0:00:19]}  d6 {[%clk 0:02:26]} 10. O-O {[%clk 0:00:19]}  O-O {[%clk 0:02:25]} 11. Rb1 {[%clk 0:00:18]}  Qf6 {[%clk 0:02:14]} 12. Ne4 {[%clk 0:00:17]}  Qe7 {[%clk 0:02:03]} 13. Ng3 {[%clk 0:00:15]}  Bc5 {[%clk 0:01:57]} 14. Nd4 {[%clk 0:00:15]}  Nce5 {[%clk 0:01:50]} 15. h3 {[%clk 0:00:12]}  Nf6 {[%clk 0:01:46]} 16. Ndf5 {[%clk 0:00:12]}  Qe8 {[%clk 0:01:28]} 17. Nd4 {[%clk 0:00:12]}  a6 {[%clk 0:01:24]} 18. Nb3 {[%clk 0:00:11]}  Ba7 {[%clk 0:01:21]} 19. c5 {[%clk 0:00:11]}  dxc5 {[%clk 0:01:02]} 20. Rc1 {[%clk 0:00:11]}  b6 {[%clk 0:00:37]} 21. Bf3 {[%clk 0:00:11]}  Rb8 {[%clk 0:00:36]} 22. Bd5+ {[%clk 0:00:11]}  Kh8 {[%clk 0:00:36]} 23. e4 {[%clk 0:00:10]}  Ng6 {[%clk 0:00:35]} 24. Be3 {[%clk 0:00:10]}  Be6 {[%clk 0:00:34]} 25. Bxe6 {[%clk 0:00:09]}  Qxe6 {[%clk 0:00:35]} 26. Qe2 {[%clk 0:00:09]}  Nxe4 {[%clk 0:00:33]} 27. Nxe4 {[%clk 0:00:06]}  Qxe4 {[%clk 0:00:34]} 28. Qxa6 {[%clk 0:00:06]}  Ra8 {[%clk 0:00:32]} 29. Rcd1 {[%clk 0:00:06]}  c4 {[%clk 0:00:31]} 30. Nd4 {[%clk 0:00:05]}  Nh4 {[%clk 0:00:31]} 31. Nf3 {[%clk 0:00:01]}  Rxf3 {[%clk 0:00:27]} 32. gxf3 {[%clk 0:00:02]}  Nxf3+ {[%clk 0:00:27]} 33. Kg2 {[%clk 0:00:02]}  Nh4+ {[%clk 0:00:24]} 34. Kg3 {[%clk 0:00:02]}  Rf8 {[%clk 0:00:16]} 0-1


[Site "https://www.chess.com"]

[Event "Titled Tuesday Blitz December 27 Early 2022"]
[White "Fabris, Alberto"]
[Black "Andreev, Konstantin"]
[WhiteFideId "801348"]
[BlackFideId "24239305"]
[WhiteElo "2230"]
[BlackElo "2195"]
[Result "0-1"]
[Round "06"]
[TimeControl "180+2"]
[Date "2022.12.27"]
[WhiteClock "0:02:05"]
[BlackClock "0:02:20"]

1. d4 {[%clk 0:03:00]}  Nf6 {[%clk 0:02:58]} 2. Nf3 {[%clk 0:03:00]}  d5 {[%clk 0:02:57]} 3. c4 {[%clk 0:02:57]}  dxc4 {[%clk 0:02:54]} 4. e3 {[%clk 0:02:56]}  a6 {[%clk 0:02:53]} 5. Bxc4 {[%clk 0:02:55]}  b5 {[%clk 0:02:54]} 6. Bd3 {[%clk 0:02:52]}  Bb7 {[%clk 0:02:54]} 7. O-O {[%clk 0:02:51]}  e6 {[%clk 0:02:54]} 8. Nc3 {[%clk 0:02:50]}  Nbd7 {[%clk 0:02:54]} 9. Qe2 {[%clk 0:02:47]}  c5 {[%clk 0:02:54]} 10. Rd1 {[%clk 0:02:44]}  Qb6 {[%clk 0:02:51]} 11. b3 {[%clk 0:02:34]}  cxd4 {[%clk 0:02:49]} 12. exd4 {[%clk 0:02:30]}  Bd6 {[%clk 0:02:47]} 13. Bb2 {[%clk 0:02:25]}  O-O {[%clk 0:02:45]} 14. Ne4 {[%clk 0:02:24]}  Nxe4 {[%clk 0:02:44]} 15. Bxe4 {[%clk 0:02:24]}  Bxe4 {[%clk 0:02:45]} 16. Qxe4 {[%clk 0:02:24]}  Nf6 {[%clk 0:02:45]} 17. Qh4 {[%clk 0:02:18]}  Rfd8 {[%clk 0:02:44]} 18. Ne5 {[%clk 0:02:12]}  Qb7 {[%clk 0:02:30]} 19. Rac1 {[%clk 0:02:05]}  Qd5 {[%clk 0:02:20]} 0-1


[Site "https://www.chess.com"]

[Event "Titled Tuesday Blitz December 27 Early 2022"]
[White "Flis, Pawel"]
[Black "Petrovic, Aleksa"]
[WhiteFideId "1112864"]
[BlackFideId "967629"]
[WhiteElo "1879"]
[BlackElo "2332"]
[Result "0-1"]
[Round "06"]
[TimeControl "180+2"]
[Date "2022.12.27"]
[WhiteClock "0:00:05"]
[BlackClock "0:00:37"]

1. e4 {[%clk 0:02:55]}  c6 {[%clk 0:02:59]} 2. d4 {[%clk 0:02:55]}  d5 {[%clk 0:02:59]} 3. Nc3 {[%clk 0:02:54]}  dxe4 {[%clk 0:02:59]} 4. Nxe4 {[%clk 0:02:55]}  Bf5 {[%clk 0:02:59]} 5. Ng3 {[%clk 0:02:54]}  Bg6 {[%clk 0:03:00]} 6. Nf3 {[%clk 0:02:55]}  e6 {[%clk 0:02:58]} 7. h4 {[%clk 0:02:48]}  h6 {[%clk 0:02:57]} 8. Ne5 {[%clk 0:02:48]}  Bh7 {[%clk 0:02:57]} 9. Qf3 {[%clk 0:02:38]}  Nf6 {[%clk 0:02:47]} 10. Be3 {[%clk 0:02:31]}  Bxc2 {[%clk 0:02:35]} 11. Bc4 {[%clk 0:02:09]}  Bb4+ {[%clk 0:02:25]} 12. Kf1 {[%clk 0:02:00]}  Bh7 {[%clk 0:02:22]} 13. a3 {[%clk 0:01:59]}  Be7 {[%clk 0:02:19]} 14. Nh5 {[%clk 0:01:25]}  Kf8 {[%clk 0:01:56]} 15. Rh3 {[%clk 0:00:49]}  Nbd7 {[%clk 0:01:48]} 16. Rd1 {[%clk 0:00:31]}  Qe8 {[%clk 0:01:17]} 17. Rg3 {[%clk 0:00:28]}  Nxe5 {[%clk 0:01:07]} 18. dxe5 {[%clk 0:00:25]}  Nxh5 {[%clk 0:00:59]} 19. Qxh5 {[%clk 0:00:24]}  Rd8 {[%clk 0:00:55]} 20. Rxd8 {[%clk 0:00:17]}  Qxd8 {[%clk 0:00:52]} 21. Qf3 {[%clk 0:00:11]}  Bd3+ {[%clk 0:00:44]} 22. Bxd3 {[%clk 0:00:09]}  Qxd3+ {[%clk 0:00:45]} 23. Kg1 {[%clk 0:00:10]}  Bxh4 {[%clk 0:00:45]} 24. Rh3 {[%clk 0:00:08]}  Be7 {[%clk 0:00:44]} 25. Kh2 {[%clk 0:00:07]}  Qd5 {[%clk 0:00:41]} 26. Qg4 {[%clk 0:00:06]}  Qxe5+ {[%clk 0:00:40]} 27. Rg3 {[%clk 0:00:05]}  h5 {[%clk 0:00:37]} 0-1


[Site "https://www.chess.com"]

[Event "Titled Tuesday Blitz December 27 Early 2022"]
[White "Garcia Almaguer, Juan Manuel"]
[Black "Warchol, Kamil"]
[WhiteFideId "5110491"]
[BlackFideId "21858241"]
[WhiteElo "2090"]
[BlackElo "2173"]
[Result "0-1"]
[Round "06"]
[TimeControl "180+2"]
[Date "2022.12.27"]
[WhiteClock "0:00:09"]
[BlackClock "0:00:04"]

1. e4 {[%clk 0:03:00]}  c5 {[%clk 0:03:00]} 2. Nf3 {[%clk 0:03:00]}  e6 {[%clk 0:03:00]} 3. d4 {[%clk 0:03:00]}  cxd4 {[%clk 0:03:01]} 4. Nxd4 {[%clk 0:03:01]}  Nc6 {[%clk 0:03:01]} 5. c4 {[%clk 0:02:57]}  Nf6 {[%clk 0:02:32]} 6. Nxc6 {[%clk 0:02:56]}  bxc6 {[%clk 0:02:25]} 7. Bd3 {[%clk 0:02:56]}  d5 {[%clk 0:02:16]} 8. cxd5 {[%clk 0:02:47]}  cxd5 {[%clk 0:02:12]} 9. Nc3 {[%clk 0:02:25]}  dxe4 {[%clk 0:02:03]} 10. Nxe4 {[%clk 0:02:21]}  Bb4+ {[%clk 0:01:51]} 11. Kf1 {[%clk 0:02:12]}  O-O {[%clk 0:01:35]} 12. Qf3 {[%clk 0:01:47]}  Nxe4 {[%clk 0:01:01]} 13. Qxe4 {[%clk 0:01:38]}  f5 {[%clk 0:01:00]} 14. Qe2 {[%clk 0:01:26]}  Bb7 {[%clk 0:00:58]} 15. a3 {[%clk 0:01:08]}  Be7 {[%clk 0:00:41]} 16. Qxe6+ {[%clk 0:01:02]}  Kh8 {[%clk 0:00:39]} 17. Be2 {[%clk 0:00:58]}  f4 {[%clk 0:00:32]} 18. h4 {[%clk 0:00:46]}  Rc8 {[%clk 0:00:18]} 19. Rh3 {[%clk 0:00:40]}  Bc5 {[%clk 0:00:12]} 20. Rd3 {[%clk 0:00:36]}  Qxh4 {[%clk 0:00:08]} 21. Ke1 {[%clk 0:00:28]}  Qxf2+ {[%clk 0:00:06]} 22. Kd1 {[%clk 0:00:26]}  Rfe8 {[%clk 0:00:06]} 23. Qg4 {[%clk 0:00:22]}  f3 {[%clk 0:00:05]} 24. Be3 {[%clk 0:00:09]}  Bxe3 {[%clk 0:00:04]} 25. Bxf3 {[%clk 0:00:08]}  Bxf3+ {[%clk 0:00:03]} 26. Qxf3 {[%clk 0:00:09]}  Qg1+ {[%clk 0:00:03]} 27. Ke2 {[%clk 0:00:08]}  Qxa1 {[%clk 0:00:04]} 28. Rxe3 {[%clk 0:00:08]}  Qxb2+ {[%clk 0:00:04]} 29. Kf1 {[%clk 0:00:09]}  Rxe3 {[%clk 0:00:04]} 30. Qxe3 {[%clk 0:00:09]}  Rc1+ {[%clk 0:00:04]} 0-1


[Site "https://www.chess.com"]

[Event "Titled Tuesday Blitz December 27 Early 2022"]
[White "Gorodetzky, David"]
[Black "Demin, Vladimir"]
[WhiteFideId "2813416"]
[BlackFideId "4167457"]
[WhiteElo "2485"]
[BlackElo "2430"]
[Result "1-0"]
[Round "06"]
[TimeControl "180+2"]
[Date "2022.12.27"]
[WhiteClock "0:01:20"]
[BlackClock "0:00:07"]

1. e4 {[%clk 0:02:55]}  Nf6 {[%clk 0:02:56]} 2. e5 {[%clk 0:02:55]}  Nd5 {[%clk 0:02:56]} 3. d4 {[%clk 0:02:55]}  d6 {[%clk 0:02:57]} 4. Nf3 {[%clk 0:02:55]}  g6 {[%clk 0:02:57]} 5. c4 {[%clk 0:02:45]}  Nb6 {[%clk 0:02:56]} 6. exd6 {[%clk 0:02:45]}  cxd6 {[%clk 0:02:57]} 7. Nc3 {[%clk 0:02:38]}  Bg7 {[%clk 0:02:55]} 8. Be3 {[%clk 0:02:38]}  O-O {[%clk 0:02:50]} 9. Rc1 {[%clk 0:02:39]}  Nc6 {[%clk 0:02:45]} 10. h3 {[%clk 0:02:38]}  Bf5 {[%clk 0:02:29]} 11. d5 {[%clk 0:02:11]}  Ne5 {[%clk 0:02:07]} 12. Nxe5 {[%clk 0:02:11]}  Bxe5 {[%clk 0:02:08]} 13. Bd3 {[%clk 0:02:11]}  Bxd3 {[%clk 0:01:58]} 14. Qxd3 {[%clk 0:02:12]}  Rc8 {[%clk 0:01:58]} 15. b3 {[%clk 0:02:13]}  Nd7 {[%clk 0:01:56]} 16. O-O {[%clk 0:02:11]}  Qa5 {[%clk 0:01:55]} 17. Bd4 {[%clk 0:02:00]}  Bxd4 {[%clk 0:01:26]} 18. Qxd4 {[%clk 0:02:00]}  Qc5 {[%clk 0:01:26]} 19. Qh4 {[%clk 0:01:48]}  Nf6 {[%clk 0:01:21]} 20. Rfe1 {[%clk 0:01:47]}  Rfe8 {[%clk 0:01:20]} 21. Re3 {[%clk 0:01:42]}  Kg7 {[%clk 0:01:06]} 22. Rce1 {[%clk 0:01:42]}  Qa5 {[%clk 0:00:54]} 23. Qd4 {[%clk 0:01:40]}  Qd8 {[%clk 0:00:41]} 24. Qxa7 {[%clk 0:01:37]}  Qd7 {[%clk 0:00:34]} 25. Qd4 {[%clk 0:01:36]}  Kf8 {[%clk 0:00:24]} 26. g4 {[%clk 0:01:35]}  h5 {[%clk 0:00:15]} 27. Ne4 {[%clk 0:01:29]}  Ng8 {[%clk 0:00:13]} 28. Ng5 {[%clk 0:01:26]}  Nf6 {[%clk 0:00:13]} 29. f3 {[%clk 0:01:25]}  Qc7 {[%clk 0:00:09]} 30. Nh7+ {[%clk 0:01:20]}  Kg7 {[%clk 0:00:06]} 31. Nxf6 {[%clk 0:01:20]}  exf6 {[%clk 0:00:07]} 32. Rxe8 {[%clk 0:01:20]} 1-0


[Site "https://www.chess.com"]